fUST/lending_fUST_20240425
["ID","MTS","AMOUNT","RATE_DAILY","PERIOD"]
[323468397,1714029050729,-500.0,0.00016438,2]
[323468398,1714029050738,-500.0,0.00016438,2]
[323468399,1714029050747,-505.17927863,0.00016438,2]
[323468400,1714029050757,-500.0,0.00016438,2]
[323468401,1714029050766,-558.24,0.00016438,2]
[323468402,1714029050775,-508.08515549,0.00016438,2]
[323468403,1714029050784,-500.65408106,0.00016438,2]
[323468404,1714029050793,-546.26,0.00016438,2]
[323468405,1714029050802,-500.30332827,0.00016438,2]
[323468406,1714029050811,-501.65743386,0.00016438,2]
[323468407,1714029050820,-500.0,0.00016438,2]
[323468408,1714029050830,-1237.28,0.00016438,2]
[323468409,1714029050842,-500.4029586,0.00016438,2]
[323468410,1714029050852,-581.00220011,0.00016438,2]
[323468411,1714029050861,-500.0,0.00016438,2]
[323468412,1714029050871,-500.0,0.00016438,2]
[323468413,1714029050880,-501.3378788,0.00016438,2]
[323468414,1714029050889,-500.0,0.00016438,2]
[323468415,1714029050898,-500.0,0.00016438,2]
[323468416,1714029050907,-500.0,0.00016438,2]
[323468417,1714029050916,-1489.98,0.00016438,2]
[323468418,1714029050925,-500.0,0.00016438,2]
[323468419,1714029050934,-500.0,0.00016438,2]
[323468420,1714029050944,-375.56794188,0.00016438,2]
[323468421,1714029050953,-958.76,0.00016438,2]
[323468422,1714029050962,-500.0,0.00016438,2]
[323468423,1714029050971,-1050.99,0.00016438,2]
[323468424,1714029050980,-518.16463082,0.00016438,2]
[323468425,1714029050989,-504.60895171,0.00016438,2]
[323468426,1714029050998,-303.46559498,0.00016438,2]
[323468427,1714029051009,-500.0,0.00016438,2]
[323468428,1714029051018,-500.0,0.00016438,2]
[323468429,1714029051028,-685.4,0.00016438,2]
[323468430,1714029051037,-500.0,0.00016438,2]
[323468431,1714029051046,-541.01,0.00016438,2]
[323468432,1714029051057,-500.0,0.00016438,2]
[323468433,1714029051067,-500.0,0.00016438,2]
[323468434,1714029051076,-500.0,0.00016438,2]
[323468435,1714029051090,-500.0,0.00016438,2]
[323468436,1714029051101,-500.0,0.00016438,2]
[323468437,1714029051110,-500.0,0.00016438,2]
[323468438,1714029051119,-500.0,0.00016438,2]
[323468439,1714029051129,-500.0,0.00016438,2]
[323468440,1714029051138,-500.0,0.00016438,2]
[323468441,1714029051148,-500.0,0.00016438,2]
[323468442,1714029051158,-500.0,0.00016438,2]
[323468443,1714029051167,-500.0,0.00016438,2]
[323468444,1714029051177,-500.0,0.00016438,2]
[323468445,1714029051186,-500.0,0.00016438,2]
[323468446,1714029051196,-341.03442853,0.00016438,2]
[323468447,1714029051205,-500.0,0.00016438,2]
[323468448,1714029051216,-501.11342184,0.00016438,2]
[323468449,1714029051225,-946.6,0.00016438,2]
[323468450,1714029051234,-1067.85,0.00016438,2]
[323468451,1714029051244,-1592.53,0.00016438,2]
[323468452,1714029051253,-1450.14,0.00016438,2]
[323468453,1714029051263,-500.0,0.00016438,2]
[323468454,1714029051272,-501.19297863,0.00016438,2]
[323468455,1714029051282,-500.0,0.00016438,2]
[323468456,1714029051291,-500.0,0.00016438,2]
[323468457,1714029051300,-500.0,0.00016438,2]
[323468458,1714029051309,-500.0,0.00016438,2]
[323468459,1714029051319,-500.0,0.00016438,2]
[323468460,1714029051328,-500.0,0.00016438,2]
[323468461,1714029051338,-487.4068985,0.00016438,2]
[323468462,1714029051347,-500.0,0.00016438,2]
[323468463,1714029051356,-500.0,0.00016438,2]
[323468464,1714029051365,-835.63,0.00016438,2]
[323468465,1714029051374,-500.0,0.00016438,2]
[323468466,1714029051383,-500.0,0.00016438,2]
[323468467,1714029051392,-514.49167832,0.00016438,2]
[323468468,1714029051401,-500.0,0.00016438,2]
[323468469,1714029051411,-155.308275,0.00016438,2]
[323468470,1714029051420,-770.33,0.00016438,2]
[323468471,1714029051429,-500.0,0.00016438,2]
[323468472,1714029051438,-500.0,0.00016438,2]
[323468473,1714029051447,-541.8775232,0.00016438,2]
[323468474,1714029051456,-500.0,0.00016438,2]
[323468475,1714029051465,-559.35820987,0.00016438,2]
[323468476,1714029051476,-508.23636141,0.00016438,2]
[323468477,1714029051485,-506.70525575,0.00016438,2]
[323468478,1714029051495,-500.0,0.00016438,2]
[323468479,1714029051504,-500.0,0.00016438,2]
[323468480,1714029051513,-284.9253734,0.00016438,2]
[323468481,1714029051522,-500.0,0.00016438,2]
[323468482,1714029051532,-500.0,0.00016438,2]
[323468483,1714029051541,-505.0931188,0.00016438,2]
[323468484,1714029051550,-500.51245058,0.00016438,2]
[323468485,1714029051559,-512.61976589,0.00016438,2]
[323468486,1714029051569,-769.52,0.00016438,2]
[323468487,1714029051578,-1283.68,0.00016438,2]
[323468488,1714029051591,-585.44586719,0.00016438,2]
[323468489,1714029051603,-500.91848929,0.00016438,2]
[323468490,1714029051612,-500.0,0.00016438,2]
[323468491,1714029051621,-533.79873388,0.00016438,2]
[323468492,1714029051631,-500.40495005,0.00016438,2]
[323468493,1714029051640,-151.0,0.00016438,2]
[323468494,1714029051649,-500.0,0.00016438,2]
[323468495,1714029051658,-501.42340549,0.00016438,2]
[323468496,1714029051667,-500.0,0.00016438,2]
[323468497,1714029051677,-500.0,0.00016438,2]
[323468498,1714029051686,-500.57362714,0.00016438,2]
[323468499,1714029051695,-536.62,0.00016438,2]
[323468500,1714029051704,-500.0,0.00016438,2]
[323468501,1714029051714,-183.9643358,0.00016438,2]
[323468502,1714029051723,-601.51875369,0.00016438,2]
[323468503,1714029051733,-500.0,0.00016438,2]
[323468504,1714029051742,-500.0,0.00016438,2]
[323468505,1714029051751,-500.0,0.00016438,2]
[323468506,1714029051760,-500.0,0.00016438,2]
[323468507,1714029051769,-575.83,0.00016438,2]
[323468508,1714029051779,-500.85462105,0.00016438,2]
[323468509,1714029051788,-3973.6,0.00016438,2]
[323468510,1714029051797,-151.0,0.00016438,2]
[323468511,1714029051807,-500.0,0.00016438,2]
[323468512,1714029051816,-502.26498444,0.00016438,2]
[323468513,1714029051825,-2242.97,0.00016438,2]
[323468514,1714029051834,-500.0,0.00016438,2]
[323468515,1714029051844,-3243.05,0.00016438,2]
[323468516,1714029051853,-501.35291574,0.00016438,2]
[323468517,1714029051862,-500.0,0.00016438,2]
[323468518,1714029051871,-500.0,0.00016438,2]
[323468519,1714029051881,-500.58239929,0.00016438,2]
[323468520,1714029051890,-500.0,0.00016438,2]
[323468521,1714029051899,-500.0,0.00016438,2]
[323468522,1714029051909,-508.57,0.00016438,2]
[323468523,1714029051919,-631.78,0.00016438,2]
[323468524,1714029051929,-151.0,0.00016438,2]
[323468525,1714029051938,-151.0,0.00016438,2]
[323468526,1714029051948,-1375.26,0.00016438,2]
[323468527,1714029051957,-500.0,0.00016438,2]
[323468528,1714029051967,-500.0,0.00016438,2]
[323468529,1714029051976,-1387.72,0.00016438,2]
[323468530,1714029051986,-501.15045271,0.00016438,2]
[323468531,1714029051996,-500.0,0.00016438,2]
[323468532,1714029052009,-500.0,0.00016438,2]
[323468533,1714029052018,-1846.12,0.00016438,2]
[323468534,1714029052028,-500.0,0.00016438,2]
[323468535,1714029052038,-800.02,0.00016438,2]
[323468536,1714029052049,-4014.24,0.00016438,2]
[323468537,1714029052058,-500.0,0.00016438,2]
[323468538,1714029052068,-4014.24,0.00016438,2]
[323468539,1714029052079,-4014.24,0.00016438,2]
[323468540,1714029052093,-500.0,0.00016438,2]
[323468541,1714029052103,-4014.24,0.00016438,2]
[323468542,1714029052114,-4014.24,0.00016438,2]
[323468543,1714029052123,-4014.24,0.00016438,2]
[323468544,1714029052132,-4014.24,0.00016438,2]
[323468545,1714029052141,-4014.24,0.00016438,2]
[323468546,1714029052150,-4014.24,0.00016438,2]
[323468547,1714029052159,-500.0,0.00016438,2]
[323468548,1714029052168,-4014.24,0.00016438,2]
[323468549,1714029052178,-500.0,0.00016438,2]
[323468550,1714029052187,-4014.24,0.00016438,2]
[323468551,1714029052197,-4014.24,0.00016438,2]
[323468552,1714029052206,-4014.24,0.00016438,2]
[323468553,1714029052215,-4014.24,0.00016438,2]
[323468554,1714029052225,-500.0,0.00016438,2]
[323468555,1714029052234,-4014.24,0.00016438,2]
[323468556,1714029052244,-4014.24,0.00016438,2]
[323468557,1714029052253,-4014.24,0.00016438,2]
[323468558,1714029052263,-4014.24,0.00016438,2]
[323468559,1714029052273,-4014.24,0.00016438,2]
[323468560,1714029052431,-4014.24,0.00016438,2]
[323468561,1714029052440,-4014.24,0.00016438,2]
[323468562,1714029052449,-4014.24,0.00016438,2]
[323468563,1714029052459,-502.75744526,0.00016438,2]
[323468564,1714029052468,-4014.24,0.00016438,2]
[323468565,1714029052477,-605.82452994,0.00016438,2]
[323468566,1714029052487,-4014.38427411,0.00016438,2]
[323468567,1714029052497,-500.0,0.00016438,2]
[323468568,1714029052506,-646.8,0.00016438,2]
[323468569,1714029052516,-500.7113275,0.00016438,2]
[323468570,1714029052526,-500.0,0.00016438,2]
[323468571,1714029052536,-500.0,0.00016438,2]
[323468572,1714029052545,-500.0,0.00016438,2]
[323468573,1714029052554,-2358.88,0.00016438,2]
[323468574,1714029052564,-1011.49,0.00016438,2]
[323468575,1714029052574,-614.28947089,0.00016438,2]
[323468576,1714029052583,-506.23855429,0.00016438,2]
[323468577,1714029052596,-501.6502599,0.00016438,2]
[323468578,1714029052605,-500.0,0.00016438,2]
[323468579,1714029052615,-564.48226089,0.00016438,2]
[323468580,1714029052625,-500.0,0.00016438,2]
[323468581,1714029052634,-2667.62,0.00016438,2]
[323468582,1714029052644,-500.0,0.00016438,2]
[323468583,1714029052653,-503.51892821,0.00016438,2]
[323468584,1714029052663,-500.0,0.00016438,2]
[323468585,1714029052673,-1174.54,0.00016438,2]
[323468586,1714029052682,-592.52,0.00016438,2]
[323468587,1714029052691,-723.31,0.00016438,2]
[323468588,1714029052701,-500.0,0.00016438,2]
[323468589,1714029052710,-500.0,0.00016438,2]
[323468590,1714029052720,-500.0,0.00016438,2]
[323468591,1714029052729,-500.0,0.00016438,2]
[323468592,1714029052738,-500.0,0.00016438,2]
[323468593,1714029052748,-500.0,0.00016438,2]
[323468594,1714029052757,-500.0,0.00016438,2]
[323468595,1714029052766,-500.0,0.00016438,2]
[323468596,1714029052775,-500.0,0.00016438,2]
[323468597,1714029052785,-500.0,0.00016438,2]
[323468598,1714029052794,-500.0,0.00016438,2]
[323468599,1714029052803,-500.0,0.00016438,2]
[323468600,1714029052812,-500.0,0.00016438,2]
[323468601,1714029052822,-500.0,0.00016438,2]
[323468602,1714029052831,-500.0,0.00016438,2]
[323468603,1714029052841,-500.0,0.00016438,2]
[323468604,1714029052851,-518.26969668,0.00016438,2]
[323468605,1714029052861,-500.0,0.00016438,2]
[323468606,1714029052871,-472.23746892,0.00016438,2]
[323468607,1714029052880,-500.0,0.00016438,2]
[323468608,1714029052894,-557.02,0.00016438,2]
[323468609,1714029052904,-546.94062832,0.00016438,2]
[323468610,1714029052913,-696.57,0.00016438,2]
[323468611,1714029052922,-646.03,0.00016438,2]
[323468612,1714029052931,-500.0,0.00016438,2]
[323468613,1714029052941,-1084.85,0.00016438,2]
[323468614,1714029052950,-500.0,0.00016438,2]
[323468615,1714029052959,-584.17,0.00016438,2]
[323468616,1714029052968,-503.5711302,0.00016438,2]
[323468617,1714029052976,-500.0,0.00016438,2]
[323468618,1714029052986,-500.0,0.00016438,2]
[323468619,1714029052996,-500.0,0.00016438,2]
[323468620,1714029053006,-762.04,0.00016438,2]
[323468621,1714029053019,-500.0,0.00016438,2]
[323468622,1714029053030,-509.24,0.00016438,2]
[323468623,1714029053040,-500.0,0.00016438,2]
[323468624,1714029053050,-500.0,0.00016438,2]
[323468625,1714029053059,-500.0,0.00016438,2]
[323468626,1714029053069,-503.74861057,0.00016438,2]
[323468627,1714029053078,-1828.52,0.00016438,2]
[323468628,1714029053088,-500.68301876,0.00016438,2]
[323468629,1714029053098,-500.0,0.00016438,2]
[323468630,1714029053107,-505.06230423,0.00016438,2]
[323468631,1714029053117,-525.09,0.00016438,2]
[323468632,1714029053125,-453.48940872,0.00016438,2]
[323468633,1714029053135,-500.0,0.00016438,2]
[323468634,1714029053144,-9714.64,0.00016438,2]
[323468635,1714029053154,-500.0,0.00016438,2]
[323468636,1714029053164,-500.0,0.00016438,2]
[323468637,1714029053173,-500.0,0.00016438,2]
[323468638,1714029053183,-496.70429932,0.00016438,2]
[323468639,1714029053193,-500.0,0.00016438,2]
[323468640,1714029053202,-500.79786407,0.00016438,2]
[323468641,1714029053211,-500.0,0.00016438,2]
[323468642,1714029053220,-500.0,0.00016438,2]
[323468643,1714029053230,-500.0,0.00016438,2]
[323468644,1714029053239,-500.0,0.00016438,2]
[323468645,1714029053249,-500.0,0.00016438,2]
[323468646,1714029053258,-1951.68,0.00016438,2]
[323468647,1714029053267,-503.14347224,0.00016438,2]
[323468648,1714029053277,-1197.24,0.00016438,2]
[323468649,1714029053286,-639.36,0.00016438,2]
[323468650,1714029053295,-500.0,0.00016438,2]
[323468651,1714029053304,-501.51564391,0.00016438,2]
[323468652,1714029053313,-500.0,0.00016438,2]
[323468653,1714029053322,-501.54482053,0.00016438,2]
[323468654,1714029053331,-500.0,0.00016438,2]
[323468655,1714029053341,-1048.02,0.00016438,2]
[323468656,1714029053351,-2000.98,0.00016438,2]
[323468657,1714029053360,-594.44,0.00016438,2]
[323468658,1714029053368,-1048.7,0.00016438,2]
[323468659,1714029053377,-500.0,0.00016438,2]
[323468660,1714029053387,-500.0,0.00016438,2]
[323468661,1714029053396,-500.0,0.00016438,2]
[323468662,1714029053405,-500.0,0.00016438,2]
[323468663,1714029053414,-500.0,0.00016438,2]
[323468664,1714029053423,-500.0,0.00016438,2]
[323468665,1714029053432,-500.0,0.00016438,2]
[323468666,1714029053441,-546.59455503,0.00016438,2]
[323468667,1714029053450,-1181.52,0.00016438,2]
[323468668,1714029053459,-500.0,0.00016438,2]
[323468669,1714029053468,-500.0,0.00016438,2]
[323468670,1714029053478,-500.0,0.00016438,2]
[323468671,1714029053487,-1309.77,0.00016438,2]
[323468672,1714029053497,-200.20118684,0.00016438,2]
[323468673,1714029053506,-500.0,0.00016438,2]
[323468674,1714029053515,-500.0,0.00016438,2]
[323468675,1714029053524,-678.72,0.00016438,2]
[323468676,1714029053533,-500.0,0.00016438,2]
[323468677,1714029053542,-500.0,0.00016438,2]
[323468678,1714029053551,-500.0,0.00016438,2]
[323468679,1714029053561,-501.199714,0.00016438,2]
[323468680,1714029053570,-500.0,0.00016438,2]
[323468681,1714029053579,-500.0,0.00016438,2]
[323468682,1714029053589,-811.0,0.00016438,2]
[323468683,1714029053598,-500.0,0.00016438,2]
[323468684,1714029053607,-500.0,0.00016438,2]
[323468685,1714029053616,-1302.25,0.00016438,2]
[323468686,1714029053625,-197.42218681,0.00016438,2]
[323468687,1714029053635,-1322.58,0.00016438,2]
[323468688,1714029053644,-500.0,0.00016438,2]
[323468689,1714029053654,-568.91410686,0.00016438,2]
[323468690,1714029053663,-206.36297364,0.00016438,2]
[323468691,1714029053672,-500.0,0.00016438,2]
[323468692,1714029053681,-500.0,0.00016438,2]
[323468693,1714029053690,-400.0,0.00016438,2]
[323468694,1714029053699,-272.63468662,0.000165,2]
[323468695,1714029053709,-2510.228698,0.00016515,2]
[323468696,1714029053719,-2789.149495,0.00016515,2]
[323468697,1714029053727,-1859.308583,0.00016515,2]
[323468698,1714029053737,-1673.426035,0.00016515,2]
[323468699,1714029053747,-151.0,0.00016515,2]
[323468700,1714029053756,-151.0,0.00016515,2]
[323468701,1714029053765,-620.0,0.00016637,2]
[323468702,1714029053774,-958.96418059,0.0001665,2]
[323468703,1714029053783,-500.0,0.00016712,2]
[323468704,1714029053793,-500.0,0.00016712,2]
[323468705,1714029053802,-500.0,0.00016712,2]
[323468706,1714029053811,-500.0,0.00016712,2]
[323468707,1714029053821,-500.0,0.00016712,2]
[323468708,1714029053830,-499.45522443,0.00016712,2]
[323468709,1714029053840,-500.0,0.00016712,2]
[323468710,1714029053849,-500.0,0.00016712,2]
[323468711,1714029053859,-500.0,0.00016712,2]
[323468712,1714029053868,-500.0,0.00016712,2]
[323468713,1714029053877,-500.0,0.00016712,2]
[323468714,1714029053887,-818.02,0.00016712,2]
[323468715,1714029053904,-500.0,0.00016712,2]
[323468716,1714029053914,-256.26418558,0.00016712,2]
[323468717,1714029053923,-619.95,0.00016712,2]
[323468718,1714029053933,-500.0,0.00016712,2]
[323468719,1714029053942,-568.07,0.00016712,2]
[323468720,1714029053952,-500.0,0.00016712,2]
[323468721,1714029053962,-500.0,0.00016712,2]
[323468722,1714029053971,-502.44712564,0.00016712,2]
[323468723,1714029053981,-793.19,0.00016712,2]
[323468724,1714029053990,-500.0,0.00016712,2]
[323468725,1714029054000,-616.43,0.00016712,2]
[323468726,1714029054012,-498.98647454,0.00016712,2]
[323468727,1714029054022,-500.0,0.00016712,2]
[323468728,1714029054031,-498.49251567,0.00016712,2]
[323468729,1714029054042,-583.35,0.00016712,2]
[323468730,1714029054051,-500.0,0.00016712,2]
[323468731,1714029054060,-500.0,0.00016712,2]
[323468732,1714029054070,-556.84246239,0.00016712,2]
[323468733,1714029054079,-500.0,0.00016712,2]
[323468734,1714029054091,-500.0,0.00016712,2]
[323468735,1714029054101,-500.0,0.00016712,2]
[323468736,1714029054110,-500.0,0.00016712,2]
[323468737,1714029054120,-500.0,0.00016712,2]
[323468738,1714029054131,-500.0,0.00016712,2]
[323468739,1714029054141,-500.0,0.00016712,2]
[323468740,1714029054150,-500.0,0.00016712,2]
[323468741,1714029054160,-500.0,0.00016712,2]
[323468742,1714029054169,-500.0,0.00016712,2]
[323468743,1714029054178,-500.0,0.00016712,2]
[323468744,1714029054188,-500.0,0.00016712,2]
[323468745,1714029054197,-500.0,0.00016712,2]
[323468746,1714029054206,-365.05498551,0.00016712,2]
[323468747,1714029054216,-500.0,0.00016712,2]
[323468748,1714029054225,-528.55258464,0.00016712,2]
[323468749,1714029054235,-500.0,0.00016712,2]
[323468750,1714029054245,-500.0,0.00016712,2]
[323468751,1714029054254,-500.70619889,0.00016712,2]
[323468752,1714029054264,-504.02761193,0.00016712,2]
[323468753,1714029054274,-500.0,0.00016712,2]
[323468754,1714029054283,-500.0,0.00016712,2]
[323468755,1714029054293,-505.74074216,0.00016712,2]
[323468756,1714029054302,-500.0,0.00016712,2]
[323468757,1714029054311,-503.38630101,0.00016712,2]
[323468758,1714029054320,-500.0,0.00016712,2]
[323468759,1714029054329,-669.58,0.00016712,2]
[323468760,1714029054340,-500.0,0.00016712,2]
[323468761,1714029054349,-346.63458445,0.00016712,2]
[323468762,1714029054359,-500.0,0.00016712,2]
[323468763,1714029054368,-500.0,0.00016712,2]
[323468764,1714029054377,-500.0,0.00016712,2]
[323468765,1714029054386,-500.0,0.00016712,2]
[323468766,1714029054396,-500.0,0.00016712,2]
[323468767,1714029054405,-503.59514409,0.00016712,2]
[323468768,1714029054414,-508.34895693,0.00016712,2]
[323468769,1714029054423,-500.0,0.00016712,2]
[323468770,1714029054432,-500.0,0.00016712,2]
[323468771,1714029054441,-500.0,0.00016712,2]
[323468772,1714029054451,-500.0,0.00016712,2]
[323468773,1714029054460,-509.38299989,0.00016712,2]
[323468774,1714029054468,-709.97,0.00016712,2]
[323468775,1714029054477,-527.48817697,0.00016712,2]
[323468776,1714029054487,-500.0,0.00016712,2]
[323468777,1714029054495,-500.0,0.00016712,2]
[323468778,1714029054505,-500.0,0.00016712,2]
[323468779,1714029054514,-500.0,0.00016712,2]
[323468780,1714029054523,-500.55316001,0.00016712,2]
[323468781,1714029054531,-636.59877208,0.00016712,2]
[323468782,1714029054541,-644.29528777,0.00016712,2]
[323468783,1714029054550,-501.5764472,0.00016712,2]
[323468784,1714029054559,-500.0,0.00016712,2]
[323468785,1714029054569,-500.0,0.00016712,2]
[323468786,1714029054579,-501.68055963,0.00016712,2]
[323468787,1714029054589,-1057.71,0.00016712,2]
[323468788,1714029054599,-500.0,0.00016712,2]
[323468789,1714029054608,-500.56,0.00016712,2]
[323468790,1714029054618,-500.0,0.00016712,2]
[323468791,1714029054663,-509.94765827,0.00016712,2]
[323468792,1714029054673,-542.857844,0.00016712,2]
[323468793,1714029054683,-633.35,0.00016712,2]
[323468794,1714029054691,-500.0,0.00016712,2]
[323468795,1714029054701,-816.77,0.00016712,2]
[323468796,1714029054711,-500.0,0.00016712,2]
[323468797,1714029054720,-1060.08,0.00016712,2]
[323468798,1714029054730,-500.0,0.00016712,2]
[323468799,1714029054739,-500.0,0.00016712,2]
[323468800,1714029054749,-500.0,0.00016712,2]
[323468801,1714029054759,-500.0,0.00016712,2]
[323468802,1714029054768,-890.42,0.00016712,2]
[323468803,1714029054777,-929.12,0.00016712,2]
[323468804,1714029054787,-500.0,0.00016712,2]
[323468805,1714029054796,-500.0,0.00016712,2]
[323468806,1714029054807,-530.52471311,0.00016712,2]
[323468807,1714029054817,-306.58330676,0.00016712,2]
[323468808,1714029054826,-500.0,0.00016712,2]
[323468809,1714029054836,-500.0,0.00016712,2]
[323468810,1714029054846,-500.0,0.00016712,2]
[323468811,1714029054855,-630.9,0.00016712,2]
[323468812,1714029054864,-500.0,0.00016712,2]
[323468813,1714029054873,-739.88,0.00016712,2]
[323468814,1714029054882,-500.0,0.00016712,2]
[323468815,1714029054891,-500.0,0.00016712,2]
[323468816,1714029054902,-500.0,0.00016712,2]
[323468817,1714029054911,-504.23048148,0.00016712,2]
[323468818,1714029054921,-500.0,0.00016712,2]
[323468819,1714029054930,-500.0,0.00016712,2]
[323468820,1714029054939,-592.11,0.00016712,2]
[323468821,1714029054948,-822.31,0.00016712,2]
[323468822,1714029054957,-500.0,0.00016712,2]
[323468823,1714029054967,-500.0,0.00016712,2]
[323468824,1714029054976,-500.75835264,0.00016712,2]
[323468825,1714029054985,-500.0,0.00016712,2]
[323468826,1714029054996,-500.0,0.00016712,2]
[323468827,1714029055009,-739.2,0.00016712,2]
[323468828,1714029055018,-500.0,0.00016712,2]
[323468829,1714029055028,-605.37,0.00016712,2]
[323468830,1714029055038,-500.0,0.00016712,2]
[323468831,1714029055048,-500.0,0.00016712,2]
[323468832,1714029055058,-500.0,0.00016712,2]
[323468833,1714029055068,-558.24,0.00016712,2]
[323468834,1714029055077,-546.26,0.00016712,2]
[323468835,1714029055087,-218.67610058,0.00016712,2]
[323468836,1714029055098,-1237.28,0.00016712,2]
[323468837,1714029055107,-500.0,0.00016712,2]
[323468838,1714029055117,-500.0,0.00016712,2]
[323468839,1714029055126,-500.0,0.00016712,2]
[323468840,1714029055135,-500.0,0.00016712,2]
[323468841,1714029055144,-500.0,0.00016712,2]
[323468842,1714029055154,-1489.98,0.00016712,2]
[323468843,1714029055164,-500.0,0.00016712,2]
[323468844,1714029055173,-500.44642875,0.00016712,2]
[323468845,1714029055182,-958.76,0.00016712,2]
[323468846,1714029055191,-500.0,0.00016712,2]
[323468847,1714029055201,-1050.99,0.00016712,2]
[323468848,1714029055210,-500.0,0.00016712,2]
[323468849,1714029055219,-500.0,0.00016712,2]
[323468850,1714029055229,-685.4,0.00016712,2]
[323468851,1714029055239,-500.0,0.00016712,2]
[323468852,1714029055248,-541.01,0.00016712,2]
[323468853,1714029055257,-500.0,0.00016712,2]
[323468854,1714029055267,-946.6,0.00016712,2]
[323468855,1714029055276,-1067.85,0.00016712,2]
[323468856,1714029055286,-1592.53,0.00016712,2]
[323468857,1714029055295,-1450.14,0.00016712,2]
[323468858,1714029055304,-500.0,0.00016712,2]
[323468859,1714029055314,-500.0,0.00016712,2]
[323468860,1714029055323,-500.0,0.00016712,2]
[323468861,1714029055332,-500.0,0.00016712,2]
[323468862,1714029055341,-442.52195458,0.00016712,2]
[323468863,1714029055351,-504.42292156,0.00016712,2]
[323468864,1714029055360,-500.0,0.00016712,2]
[323468865,1714029055369,-500.0,0.00016712,2]
[323468866,1714029055378,-286.63572918,0.00016712,2]
[323468867,1714029055387,-835.63,0.00016712,2]
[323468868,1714029055396,-500.0,0.00016712,2]
[323468869,1714029055405,-500.0,0.00016712,2]
[323468870,1714029055416,-500.0,0.00016712,2]
[323468871,1714029055425,-770.33,0.00016712,2]
[323468872,1714029055434,-507.87486056,0.00016712,2]
[323468873,1714029055443,-500.0,0.00016712,2]
[323468874,1714029055452,-500.0,0.00016712,2]
[323468875,1714029055462,-500.0,0.00016712,2]
[323468876,1714029055471,-543.49168618,0.00016712,2]
[323468877,1714029055480,-500.0,0.00016712,2]
[323468878,1714029055489,-500.0,0.00016712,2]
[323468879,1714029055498,-769.52,0.00016712,2]
[323468880,1714029055507,-1283.68,0.00016712,2]
[323468881,1714029055516,-500.0,0.00016712,2]
[323468882,1714029055525,-375.74685873,0.00016712,2]
[323468883,1714029055534,-151.0,0.00016712,2]
[323468884,1714029055543,-500.0,0.00016712,2]
[323468885,1714029055552,-524.91606597,0.00016712,2]
[323468886,1714029055561,-536.62,0.00016712,2]
[323468887,1714029055570,-500.0,0.00016712,2]
[323468888,1714029055579,-500.0,0.00016712,2]
[323468889,1714029055588,-500.0,0.00016712,2]
[323468890,1714029055599,-500.0,0.00016712,2]
[323468891,1714029055609,-575.83,0.00016712,2]
[323468892,1714029055618,-3973.6,0.00016712,2]
[323468893,1714029055627,-151.0,0.00016712,2]
[323468894,1714029055637,-151.0,0.00016712,2]
[323468895,1714029055646,-500.0,0.00016712,2]
[323468896,1714029055655,-2242.97,0.00016712,2]